{"text_format":"1","workbook":"xlsx","n_sheets":28,"sheets":["Инструкция","Лог обновления","Титульный","ИП","Комментарии","Проверка","TEHSHEET","et_union","mod_00","mod_01","mod_com","modProv","modFill","AllSheetsInThisWorkbook","modHTTP","modReestr","modInstruction","modUpdTemplMain","modfrmCheckUpdates","modfrmDateChoose","modfrmRegion","modfrmReestr","REESTR_MO","REESTR_ORG","REESTR_IP","modClassifierValidate","modCheckCyan","modHyp"],"not_rendered":{"charts":0,"images":17,"macros":1,"external_links":0,"defined_names":111,"comments":1,"pivot_tables":0},"unopened":[],"bounds":{"document_bytes":16777216,"sheet_cells":100000,"rows_first":2000,"rows_last":500,"rows_between":2000,"halvings":0,"cell_chars":16384,"cell_head_chars":4096},"cells_cut":0,"cells_raw":0,"read":"whole","date_system":"1900"}

{"sheet":"Инструкция","index":0,"n_rows":104,"n_cols":27,"rows_kept":104,"cut":false,"hidden":false,"merged":[[93,4,93,5],[88,7,88,23],[86,10,86,23],[89,4,89,9],[89,10,89,23],[91,4,91,6],[91,7,91,23],[87,10,87,23],[88,4,88,6],[90,10,90,23],[20,5,20,12],[20,15,20,23],[58,10,58,23],[21,5,21,12],[40,4,44,23],[45,4,56,23],[57,10,57,23],[57,4,57,9],[84,4,84,23],[85,4,85,23],[58,4,58,9],[21,15,21,23],[34,4,38,23],[39,4,39,23],[59,4,59,6],[59,7,59,23],[82,7,82,23],[81,4,81,23],[83,10,83,23],[70,4,70,23],[1,1,1,6],[2,1,2,2],[4,1,4,24],[6,4,12,23],[13,4,18,23],[103,5,103,23],[60,7,60,23],[80,4,80,23],[93,7,93,23],[92,4,92,6],[92,7,92,23],[69,4,69,17],[86,4,86,9],[94,4,94,6],[94,7,94,23],[101,5,101,18],[83,4,83,9],[99,4,99,23],[82,4,82,6],[87,4,87,9],[90,4,90,9]]}
[null,null,null,null,null,null,null,null,null,null,null,null,null,null,null,null,null,null,null,null,null,null,null,null,null,null," (требуется обновление)"]
[null,{"$f":"\"Код шаблона: \" & GetCode()","v":"Код шаблона: INV.VOTV.Q2.2018"}]
[null,{"$f":"\"Версия \" & Getversion()","v":"Версия 1.0"}]
[]
[null,{"$f":"Титульный!E5","v":"Контроль за использованием инвестиционных ресурсов, включаемых в регулируемые государством цены (тарифы) в сфере водоотведения за 2018 год"}]
[]
[null,null,null,null,"• На рабочем месте должен быть установлен MS Office 2007 SP3, 2010, 2013, 2016 с полной версией MS Excel\n\n• Макросы во время работы должны быть включены (!)\n\n• Для корректной работы отчёта требуется выбрать низкий уровень безопасности\n(В меню MS Excel 2007/2010/2013/2016: Параметры Excel | Центр управления безопасностью | Параметры центра управления безопасностью | Параметры макросов | Включить все макросы | ОК)\n\n"]
[]
[]
[]
[]
[]
[]
[null,null,null,null,"• Если Вы работаете в табличном процессоре MS Excel 2007 и выше, то можете использовать для работы формат XLSB (Двоичная книга Excel). При работе в формате XLSB заметно быстрее происходит сохранение файла, а также уменьшается размер по сравнению с форматами XLS и XLSM\n\n• Не рекомендуется снимать защиту с листов и каким-либо образом модифицировать защищаемые формулы и расчётные поля, в противном случае, отчёт будет отклонён системой\n\n• При сохранении не следует выбирать формат XLSX (Книга Excel), так как в указанном формате макросы, необходимые для работы отчёта, безвозвратно удаляются"]
[]
[]
[]
[]
[]
[]
[null,null,null,null,"A"," - предназначенные для заполнения",null,null,null,null,null,null,null,null,"A"," - ссылки и автозаполняемые поля"]
[null,null,null,null,"A"," - с формулами и константами",null,null,null,null,null,null,null,null,"A"," - обязательные для заполнения"]
[]
[]
[]
[]
[]
[]
[]
[]
[]
[]
[]
[]
[null,null,null,null,"Если в предложенном Вам списке необходимая организация, МР/МО отсутствуют, обновите реестры с помощью кнопок\n\nВ результате синхронизации с базой данных список организаций (МР/МО) будет заменён актуальным (механизм синхронизации требует подключения к сети Интернет и основан на использовании протокола HTTPS (TCP порт 443))\n\nЕсли после обновления Вам не удалось найти необходимую организацию в списке, обратитесь к ответственному за поддержание реестра Вашего региона."]
[]
[]
[]
[]
[]
[]
[]
[]
[]
[]
[null,null,null,null,"• При сохранении шаблона осуществляется проверка корректности данных, в том числе на наличие значений в ячейках, обязательных для заполнения\n\n• Если какая-то ячейка не удовлетворяет условию проверки, на лист «Проверка» добавляется гиперссылка на данную ячейку и указывается причина ошибки\n\n• В колонке «Статус» для каждого сообщения возможны 2 значения: ошибка и предупреждение\n\n• При наличии сообщений со статусом «Ошибка» шаблон будет отклонён системой и не будет загружен в хранилище данных, сообщения со статусом «Предупреждение» носят информационный характер, и такой шаблон будет принят системой"]
[]
[]
[]
[]
[]
[]
[]
[]
[]
[]
[]
[null,null,null,null,"Консультации:",null,null,null,null,null,"Обратиться за помощью"]
[null,null,null,null,"Дистрибутивы:",null,null,null,null,null,"Перейти"]
[]
[]
[]
[]
[]
[]
[]
[]
[]
[]
[]
[null,null,null,null,"Инструкция по заполнению"]
[]
[]
[]
[]
[]
[]
[]
[]
[]
[]
[]
[]
[null,null,null,null,"Отчётные формы:",null,null,null,null,null,"Перейти к разделу"]
[]
[null,null,null,null,"Контакты специалистов ЦА ФАС России:"]
[null,null,null,null,"ФИО:",null,null,null,null,null,"Бутко Татьяна Викторовна"]
[null,null,null,null,"E-mail:",null,null,null,null,null,"butko@fas.gov.ru"]
[]
[null,null,null,null,"ФИО:",null,null,null,null,null,"Сондоевская Ксения Александровна"]
[null,null,null,null,"E-mail:",null,null,null,null,null,"demicheva@fas.gov.ru"]
[]
[]
[]
[]
[]
[]
[]
[]
[null,null,null,null,"При наличии подключения к Интернет, можно автоматически проверять наличие доступных обновлений. Выберите способ оповещения о наличии обновлений для отчёта:"]
[]
[null,null,null,null,null,"проверять доступные обновления (рекомендуется)",null,null,null,null,null,null,null,null,null,null,null,null,null,null,null,null,null,null,null,null,"y"]
[]
[null,null,null,null,null,"никогда не проверять наличие обновлений (не рекомендуется)"]

{"sheet":"Лог обновления","index":1,"n_rows":15,"n_cols":3,"rows_kept":15,"cut":false,"hidden":true,"merged":[]}
["Дата/Время","Сообщение","Статус"]
["2018-07-13T14:37:10","Проверка доступных обновлений...","Информация"]
["2018-07-13T14:37:15","Нет доступных обновлений для отчёта с кодом INV.VOTV.Q2.2018!","Информация"]
["2018-07-17T08:03:18","Проверка доступных обновлений...","Информация"]
["2018-07-17T08:03:19","Нет доступных обновлений для отчёта с кодом INV.VOTV.Q2.2018!","Информация"]
["2018-07-17T15:47:04","Проверка доступных обновлений...","Информация"]
["2018-07-17T15:47:05","Нет доступных обновлений для отчёта с кодом INV.VOTV.Q2.2018!","Информация"]
["2018-07-17T15:47:36","Проверка доступных обновлений...","Информация"]
["2018-07-17T15:47:37","Нет доступных обновлений для отчёта с кодом INV.VOTV.Q2.2018!","Информация"]
["2018-07-18T16:11:31","Проверка доступных обновлений...","Информация"]
["2018-07-18T16:11:32","Нет доступных обновлений для отчёта с кодом INV.VOTV.Q2.2018!","Информация"]
["2018-07-20T15:30:01","Проверка доступных обновлений...","Информация"]
["2018-07-20T15:30:03","Нет доступных обновлений для отчёта с кодом INV.VOTV.Q2.2018!","Информация"]
["2018-07-25T10:17:02","Проверка доступных обновлений...","Информация"]
["2018-07-25T10:17:03","Нет доступных обновлений для отчёта с кодом INV.VOTV.Q2.2018!","Информация"]

{"sheet":"Титульный","index":2,"n_rows":48,"n_cols":10,"rows_kept":48,"cut":false,"hidden":false,"merged":[[4,4,4,5],[8,4,9,4]]}
[]
[]
[]
[null,null,null,null,null,{"$f":"version","v":"Версия 1.0"}]
[null,null,null,null,{"$f":"\"Контроль за использованием инвестиционных ресурсов, включаемых в регулируемые государством цены (тарифы) в сфере водоотведения за \" & god & \" год\"","v":"Контроль за использованием инвестиционных ресурсов, включаемых в регулируемые государством цены (тарифы) в сфере водоотведения за 2018 год"}]
[]
[null,null,null,null,"Субъект РФ","Республика Башкортостан"]
[]
[null,null,null,null,"Период регулирования",2018,"Год"]
[null,null,null,null,null,"I полугодие","Квартал"]
[]
[null,null,null,null,"Наименование ИП","Инвестиционная программа Ишимбайского муниципального унитарного предприятия \"Межрайкоммунводоканал\" по развитию систем водоснабжения и водоотведения муниципального района Ишимбайский район на период 2017 - 2021 гг.",null,1,26472050,48478772]
[]
[]
[null,null,null,null,"Наименование организации","ИМУП \"Межрайкоммунводоканал\""]
[null,null,null,null,"ИНН","0261002348"]
[null,null,null,null,"КПП","026101001"]
[null,null,null,null,"Наименование (описание) обособленного подразделения","Не определено"]
[]
[null,null,null,null,"Организационно-правовая форма","6 52 43 | Муниципальные унитарные предприятия"]
[null,null,null,null,"Вид деятельности","Приём сточных вод :: Очистка сточных вод"]
[]
[null,null,null,null,"ИП утверждена с НДС","нет"]
[null,null,null,null,"Показатели качества и надежности","по организации",null,""]
[null,null,null,null,"Мероприятия по концессионному соглашению","ИП не содержит мероприятия, реализуемые в рамках КС"]
[null,null,null,null,"Корректировка НВВ в связи с неисполнением ИП","нет"]
[]
[]
[null,null,null,null,"Дата начала ИП","01.01.2017"]
[null,null,null,null,"Дата окончания ИП","31.12.2021"]
[]
[null,null,null,null,"Период реализации ИП",{"$f":"CalcPeriod(date_start,date_end)","v":"5 лет"}]
[]
[]
[null,null,null,null,"Наименование решения","Приказ Министерства жилищно-коммунального хозяйства Республики Башкортостан"]
[null,null,null,null,"Тип решения","приказ"]
[null,null,null,null,"Номер решения","04/06-396"]
[null,null,null,null,"Дата решения","17.11.2016"]
[null,null,null,null,"Ссылка на обосновывающие материалы","https://portal.eias.ru/Portal/DownloadPage.aspx?type=12&guid=7326ae23-64d6-4716-9b8e-3b798566474a"]
[]
[null,null,null,null,null,"Адрес регулируемой организации"]
[null,null,null,null,"Юридический адрес","453204, РБ, г. Ишимбай, ул. Жукова, 16"]
[null,null,null,null,"Почтовый адрес","453204, РБ, г. Ишимбай, ул. Жукова, 16"]
[null,null,null,null,null,"Ответственный за предоставление информации\n (от регулируемой организации)"]
[null,null,null,null,"Фамилия, имя, отчество","Стародубова Елена Николаевна"]
[null,null,null,null,"Должность","главный экономист"]
[null,null,null,null,"Контактный телефон","(34794) 4-13-77"]
[null,null,null,null,"e-mail","ishvodokanal@rambler.ru"]

{"sheet":"ИП","index":3,"n_rows":60,"n_cols":76,"rows_kept":60,"cut":false,"hidden":false,"merged":[[46,42,47,42],[46,43,47,43],[46,18,47,18],[46,44,47,44],[6,36,7,36],[6,37,7,37],[6,38,7,38],[6,39,7,39],[6,40,7,40],[6,41,7,41],[6,42,7,42],[6,43,7,43],[46,36,47,36],[46,37,47,37],[46,38,47,38],[46,39,47,39],[46,40,47,40],[46,41,47,41],[46,35,47,35],[6,35,7,35],[6,34,7,34],[46,28,46,32],[6,28,6,32],[46,34,47,34],[6,5,7,5],[6,6,7,6],[6,10,7,10],[6,11,7,11],[46,21,46,27],[6,44,7,44],[6,47,7,47],[46,7,46,9],[6,7,6,9],[6,45,7,45],[6,14,6,15],[46,14,46,15],[46,45,47,45],[46,46,47,46],[46,47,47,47],[6,19,7,19],[46,11,47,11],[46,17,47,17],[46,10,47,10],[46,19,47,19],[46,20,47,20],[6,46,7,46],[57,3,57,5],[58,3,58,5],[59,3,59,5],[6,12,6,13],[46,12,46,13],[46,6,47,6],[46,5,47,5],[46,3,47,3],[46,4,47,4],[6,20,7,20],[6,21,6,27],[6,3,7,3],[6,17,7,17],[6,18,7,18],[6,4,7,4],[46,50,46,53],[46,54,46,55],[46,48,47,48],[6,48,6,49],[46,49,47,49],[50,3,52,3],[50,4,52,4],[50,5,52,5],[50,6,52,6],[50,7,52,7],[50,8,52,8],[50,9,52,9],[50,10,52,10],[50,11,52,11],[50,12,52,12],[50,13,52,13],[50,14,52,14],[50,15,52,15],[51,16,52,16],[51,17,52,17],[51,18,52,18],[51,19,52,19],[51,20,52,20],[51,21,52,21],[51,22,52,22],[51,23,52,23],[51,24,52,24],[51,25,52,25],[51,26,52,26],[51,27,52,27],[51,28,52,28],[51,29,52,29],[51,30,52,30],[51,31,52,31],[51,32,52,32]]}
[null,null,null,null,1]
[]
[]
[null,null,null,{"$f":" \"Справка о финансировании в тыс.руб \" & IF(nds = \"да\", \"(c НДС)\", \"(без НДС)\")","v":"Справка о финансировании в тыс.руб (без НДС)"}]
[null,null,null,{"$f":"region_name & \" \" & org","v":"Республика Башкортостан ИМУП \"Межрайкоммунводоканал\""}]
[]
[null,null,null,"№ п/п","Группа, к которой относятся мероприятия инвестиционной программы","Подгруппа, к которой относятся мероприятия инвестиционной программы","Наименование строек","Территория оказания услуг",null,null,"Период реализации согласно ИП, лет","Плановый год ввода в эксплуатацию / выполнения мероприятия","Фактическая дата ввода в эксплуатацию / выполнения мероприятия",null,"Стадия выполнения, %",null,null,"№ объекта","Объект инфраструктуры ВС","Наименование объекта","Тип объекта","Адрес объекта",null,null,null,null,null,null,"Территория оказания услуг",null,null,null,null,null,"№ источника","Источник финансирования","В рамках концессионного соглашения","Наименование концессионного соглашения","Дата начала","Дата окончания","Наименование решения по КС","Тип решения по КС","№ решения по КС","Дата принятия решения по КС","Всего утверждено на весь период реализации ИП (полная стоимость) 1","Утверждено на 2018 год 1","Факт за 1 полугодие 2018 года 2,3","Факт за год 2018 года 2,3","Отклонения 2"]
[null,null,null,null,null,null,null,"Муниципальный район","Муниципальное образование","ОКТМО",null,null,"месяц","год","план","факт",null,null,null,null,null,"Муниципальный район","Муниципальное образование","ОКТМО","Населенный пункт","ОКТМО","улица, проезд, проспект, переулок, и т.п.","дом, корпус, строение","Муниципальный район","Муниципальное образование","ОКТМО","Населенный пункт","ОКТМО",null,null,null,null,null,null,null,null,null,null,null,null,null,null,null,"тыс.руб. ","%"]
[null,null,null,null,null,null,null,null,null,null,null,null,null,null,null,null,null,null,null,null,null,null,null,null,null,null,null,null,null,null,null,null,null,null,null,"Всего в рамках ИП"]
[null,null,null,null,null,null,null,null,null,null,null,null,null,null,null,null,null,null,null,null,null,null,null,null,null,null,null,null,null,null,null,null,null,null,null,"Всего",null,null,null,null,null,null,null,null,{"$f":"AS11+AS16+AS20+AS24","v":2680},{"$f":"AT11+AT16+AT20+AT24","v":1340},{"$f":"AU11+AU16+AU20+AU24","v":0},{"$f":"AV11+AV16+AV20+AV24","v":0},{"$f":"AW11+AW16+AW20+AW24","v":-1340},{"$f":"IF(AU10 = 0, 0,AU10/AT10*100)","v":0}]
[null,null,null,null,null,null,null,null,null,null,null,null,null,null,null,null,null,null,null,null,null,null,null,null,null,null,null,null,null,null,null,null,null,null,1,"Собственные средства",null,null,null,null,null,null,null,null,{"$f":"AS12+AS13+AS14+AS15","v":2680},{"$f":"AT12+AT13+AT14+AT15","v":1340},{"$f":"AU12+AU13+AU14+AU15","v":0},{"$f":"AV12+AV13+AV14+AV15","v":0},{"$f":"AW12+AW13+AW14+AW15","v":-1340},{"$f":"IF(AU11 = 0, 0,AU11/AT11*100)","v":0}]
[null,null,null,null,null,null,null,null,null,null,null,null,null,null,null,null,null,null,null,null,null,null,null,null,null,null,null,null,null,null,null,null,null,null,"1.1","Прибыль направляемая на инвестиции",null,null,null,null,null,null,null,null,{"$f":"SUMIF($BI$49:$BI$54,$BI12,AS$49:AS$54)","v":2680},1340,0,0,{"$f":"SUMIF($BI$49:$BI$54,$BI12,AX$49:AX$54)","v":-1340},0,null,null,null,null,null,null,null,null,null,null,{"$f":"AJ12 & \"0\"","v":"Прибыль направляемая на инвестиции0"}]
[null,null,null,null,null,null,null,null,null,null,null,null,null,null,null,null,null,null,null,null,null,null,null,null,null,null,null,null,null,null,null,null,null,null,"1.2","Амортизационные отчисления",null,null,null,null,null,null,null,null,0,0,0,0,{"$f":"SUMIF($BI$49:$BI$54,$BI13,AX$49:AX$54)","v":0},0,null,null,null,null,null,null,null,null,null,null,{"$f":"AJ13 & \"0\"","v":"Амортизационные отчисления0"}]
[null,null,null,null,null,null,null,null,null,null,null,null,null,null,null,null,null,null,null,null,null,null,null,null,null,null,null,null,null,null,null,null,null,null,"1.3","Прочие собственные средства",null,null,null,null,null,null,null,null,0,0,0,0,{"$f":"SUMIF($BI$49:$BI$54,$BI14,AX$49:AX$54)","v":0},0,null,null,null,null,null,null,null,null,null,null,{"$f":"AJ14 & \"0\"","v":"Прочие собственные средства0"}]
[null,null,null,null,null,null,null,null,null,null,null,null,null,null,null,null,null,null,null,null,null,null,null,null,null,null,null,null,null,null,null,null,null,null,"1.4","За счет платы за технологическое присоединение",null,null,null,null,null,null,null,null,0,0,0,0,{"$f":"SUMIF($BI$49:$BI$54,$BI15,AX$49:AX$54)","v":0},0,null,null,null,null,null,null,null,null,null,null,{"$f":"AJ15 & \"0\"","v":"За счет платы за технологическое присоединение0"}]
[null,null,null,null,null,null,null,null,null,null,null,null,null,null,null,null,null,null,null,null,null,null,null,null,null,null,null,null,null,null,null,null,null,null,"2","Привлеченные средства",null,null,null,null,null,null,null,null,{"$f":"SUM(AS17:AS19)","v":0},{"$f":"SUM(AT17:AT19)","v":0},{"$f":"SUM(AU17:AU19)","v":0},{"$f":"SUM(AV17:AV19)","v":0},{"$f":"SUM(AW17:AW19)","v":0},0]
[null,null,null,null,null,null,null,null,null,null,null,null,null,null,null,null,null,null,null,null,null,null,null,null,null,null,null,null,null,null,null,null,null,null,"2.1","Кредиты",null,null,null,null,null,null,null,null,{"$f":"SUMIF($BI$49:$BI$54,$BI17,AS$49:AS$54)","v":0},0,0,0,{"$f":"SUMIF($BI$49:$BI$54,$BI17,AX$49:AX$54)","v":0},0,null,null,null,null,null,null,null,null,null,null,{"$f":"AJ17 & \"0\"","v":"Кредиты0"}]
[null,null,null,null,null,null,null,null,null,null,null,null,null,null,null,null,null,null,null,null,null,null,null,null,null,null,null,null,null,null,null,null,null,null,"2.2","Займы",null,null,null,null,null,null,null,null,0,0,0,0,{"$f":"SUMIF($BI$49:$BI$54,$BI18,AX$49:AX$54)","v":0},0,null,null,null,null,null,null,null,null,null,null,{"$f":"AJ18 & \"0\"","v":"Займы0"}]
[null,null,null,null,null,null,null,null,null,null,null,null,null,null,null,null,null,null,null,null,null,null,null,null,null,null,null,null,null,null,null,null,null,null,"2.3","Прочие привлеченные средства",null,null,null,null,null,null,null,null,0,0,0,0,{"$f":"SUMIF($BI$49:$BI$54,$BI19,AX$49:AX$54)","v":0},0,null,null,null,null,null,null,null,null,null,null,{"$f":"AJ19 & \"0\"","v":"Прочие привлеченные средства0"}]
[null,null,null,null,null,null,null,null,null,null,null,null,null,null,null,null,null,null,null,null,null,null,null,null,null,null,null,null,null,null,null,null,null,null,"3","Бюджетное финансирование",null,null,null,null,null,null,null,null,{"$f":"SUM(AS21:AS23)","v":0},{"$f":"SUM(AT21:AT23)","v":0},{"$f":"SUM(AU21:AU23)","v":0},{"$f":"SUM(AV21:AV23)","v":0},{"$f":"SUM(AW21:AW23)","v":0},0]
[null,null,null,null,null,null,null,null,null,null,null,null,null,null,null,null,null,null,null,null,null,null,null,null,null,null,null,null,null,null,null,null,null,null,"3.1","Федеральный бюджет",null,null,null,null,null,null,null,null,{"$f":"SUMIF($BI$49:$BI$54,$BI21,AS$49:AS$54)","v":0},0,0,0,{"$f":"SUMIF($BI$49:$BI$54,$BI21,AX$49:AX$54)","v":0},0,null,null,null,null,null,null,null,null,null,null,{"$f":"AJ21 & \"0\"","v":"Федеральный бюджет0"}]
[null,null,null,null,null,null,null,null,null,null,null,null,null,null,null,null,null,null,null,null,null,null,null,null,null,null,null,null,null,null,null,null,null,null,"3.2","Бюджет субъекта РФ",null,null,null,null,null,null,null,null,0,0,0,0,{"$f":"SUMIF($BI$49:$BI$54,$BI22,AX$49:AX$54)","v":0},0,null,null,null,null,null,null,null,null,null,null,{"$f":"AJ22 & \"0\"","v":"Бюджет субъекта РФ0"}]
[null,null,null,null,null,null,null,null,null,null,null,null,null,null,null,null,null,null,null,null,null,null,null,null,null,null,null,null,null,null,null,null,null,null,"3.3","Бюджет муниципального образования",null,null,null,null,null,null,null,null,0,0,0,0,{"$f":"SUMIF($BI$49:$BI$54,$BI23,AX$49:AX$54)","v":0},0,null,null,null,null,null,null,null,null,null,null,{"$f":"AJ23 & \"0\"","v":"Бюджет муниципального образования0"}]
[null,null,null,null,null,null,null,null,null,null,null,null,null,null,null,null,null,null,null,null,null,null,null,null,null,null,null,null,null,null,null,null,null,null,"4","Прочие источники финансирования",null,null,null,null,null,null,null,null,{"$f":"SUM(AS25:AS26)","v":0},{"$f":"SUM(AT25:AT26)","v":0},{"$f":"SUM(AU25:AU26)","v":0},{"$f":"SUM(AV25:AV26)","v":0},{"$f":"SUM(AW25:AW26)","v":0},0]
[null,null,null,null,null,null,null,null,null,null,null,null,null,null,null,null,null,null,null,null,null,null,null,null,null,null,null,null,null,null,null,null,null,null,"4.1","Лизинг",null,null,null,null,null,null,null,null,{"$f":"SUMIF($BI$49:$BI$54,$BI25,AS$49:AS$54)","v":0},0,0,0,{"$f":"SUMIF($BI$49:$BI$54,$BI25,AX$49:AX$54)","v":0},0,null,null,null,null,null,null,null,null,null,null,{"$f":"AJ25 & \"0\"","v":"Лизинг0"}]
[null,null,null,null,null,null,null,null,null,null,null,null,null,null,null,null,null,null,null,null,null,null,null,null,null,null,null,null,null,null,null,null,null,null,"4.2","Прочие",null,null,null,null,null,null,null,null,0,0,0,0,{"$f":"SUMIF($BI$49:$BI$54,$BI26,AX$49:AX$54)","v":0},0,null,null,null,null,null,null,null,null,null,null,{"$f":"AJ26 & \"0\"","v":"Прочие0"}]
[null,null,null,null,null,null,null,null,null,null,null,null,null,null,null,null,null,null,null,null,null,null,null,null,null,null,null,null,null,null,null,null,null,null,null,"Всего в рамках КС"]
[null,null,null,null,null,null,null,null,null,null,null,null,null,null,null,null,null,null,null,null,null,null,null,null,null,null,null,null,null,null,null,null,null,null,null,"Всего",null,null,null,null,null,null,null,null,{"$f":"AS29+AS34+AS38+AS42","v":0},{"$f":"AT29+AT34+AT38+AT42","v":0},{"$f":"AU29+AU34+AU38+AU42","v":0},{"$f":"AV29+AV34+AV38+AV42","v":0},{"$f":"AW29+AW34+AW38+AW42","v":0},{"$f":"IF(AU28 = 0, 0,AU28/AT28*100)","v":0},null,null,null,null,null,null,null,null,null,null,null,null,null,null,null,null,null,null,null,null,null,null,null,null,null,{"$f":"AJ28&\"да\"","v":"Всегода"}]
[null,null,null,null,null,null,null,null,null,null,null,null,null,null,null,null,null,null,null,null,null,null,null,null,null,null,null,null,null,null,null,null,null,null,1,"Собственные средства",null,null,null,null,null,null,null,null,{"$f":"AS30+AS31+AS32+AS33","v":0},{"$f":"AT30+AT31+AT32+AT33","v":0},{"$f":"AU30+AU31+AU32+AU33","v":0},{"$f":"AV30+AV31+AV32+AV33","v":0},{"$f":"AW30+AW31+AW32+AW33","v":0},{"$f":"IF(AU29 = 0, 0,AU29/AT29*100)","v":0},null,null,null,null,null,null,null,null,null,null,null,null,null,null,null,null,null,null,null,null,null,null,null,null,null,{"$f":"AJ29&\"да\"","v":"Собственные средствада"}]
[null,null,null,null,null,null,null,null,null,null,null,null,null,null,null,null,null,null,null,null,null,null,null,null,null,null,null,null,null,null,null,null,null,null,"1.1","Прибыль направляемая на инвестиции",null,null,null,null,null,null,null,null,{"$f":"SUMIF($BX$49:$BX$54,$BX30,AS$49:AS$54)","v":0},0,0,0,{"$f":"SUMIF($BX$49:$BX$54,$BX30,AX$49:AX$54)","v":0},0,null,null,null,null,null,null,null,null,null,null,{"$f":"AJ30 & \"0\"","v":"Прибыль направляемая на инвестиции0"},null,null,null,null,null,null,null,null,null,null,null,null,null,null,{"$f":"AJ30&\"да\"","v":"Прибыль направляемая на инвестициида"}]
[null,null,null,null,null,null,null,null,null,null,null,null,null,null,null,null,null,null,null,null,null,null,null,null,null,null,null,null,null,null,null,null,null,null,"1.2","Амортизационные отчисления",null,null,null,null,null,null,null,null,0,0,0,0,{"$f":"SUMIF($BX$49:$BX$54,$BX31,AX$49:AX$54)","v":0},0,null,null,null,null,null,null,null,null,null,null,{"$f":"AJ31 & \"0\"","v":"Амортизационные отчисления0"},null,null,null,null,null,null,null,null,null,null,null,null,null,null,{"$f":"AJ31&\"да\"","v":"Амортизационные отчисленияда"}]
[null,null,null,null,null,null,null,null,null,null,null,null,null,null,null,null,null,null,null,null,null,null,null,null,null,null,null,null,null,null,null,null,null,null,"1.3","Прочие собственные средства",null,null,null,null,null,null,null,null,0,0,0,0,{"$f":"SUMIF($BX$49:$BX$54,$BX32,AX$49:AX$54)","v":0},0,null,null,null,null,null,null,null,null,null,null,{"$f":"AJ32 & \"0\"","v":"Прочие собственные средства0"},null,null,null,null,null,null,null,null,null,null,null,null,null,null,"Прочие собственные средствада"]
[null,null,null,null,null,null,null,null,null,null,null,null,null,null,null,null,null,null,null,null,null,null,null,null,null,null,null,null,null,null,null,null,null,null,"1.4","За счет платы за технологическое присоединение",null,null,null,null,null,null,null,null,0,0,0,0,{"$f":"SUMIF($BX$49:$BX$54,$BX33,AX$49:AX$54)","v":0},0,null,null,null,null,null,null,null,null,null,null,{"$f":"AJ33 & \"0\"","v":"За счет платы за технологическое присоединение0"},null,null,null,null,null,null,null,null,null,null,null,null,null,null,"За счет платы за технологическое присоединениеда"]
[null,null,null,null,null,null,null,null,null,null,null,null,null,null,null,null,null,null,null,null,null,null,null,null,null,null,null,null,null,null,null,null,null,null,"2","Привлеченные средства",null,null,null,null,null,null,null,null,{"$f":"SUM(AS35:AS37)","v":0},{"$f":"SUM(AT35:AT37)","v":0},{"$f":"SUM(AU35:AU37)","v":0},{"$f":"SUM(AV35:AV37)","v":0},{"$f":"SUM(AW35:AW37)","v":0},0,null,null,null,null,null,null,null,null,null,null,null,null,null,null,null,null,null,null,null,null,null,null,null,null,null,"Привлеченные средствада"]
[null,null,null,null,null,null,null,null,null,null,null,null,null,null,null,null,null,null,null,null,null,null,null,null,null,null,null,null,null,null,null,null,null,null,"2.1","Кредиты",null,null,null,null,null,null,null,null,{"$f":"SUMIF($BX$49:$BX$54,$BX35,AS$49:AS$54)","v":0},0,0,0,{"$f":"SUMIF($BX$49:$BX$54,$BX35,AX$49:AX$54)","v":0},{"$f":"IF(AU35 = 0, 0,AU35/AT35*100)","v":0},null,null,null,null,null,null,null,null,null,null,{"$f":"AJ35 & \"0\"","v":"Кредиты0"},null,null,null,null,null,null,null,null,null,null,null,null,null,null,"Кредитыда"]
[null,null,null,null,null,null,null,null,null,null,null,null,null,null,null,null,null,null,null,null,null,null,null,null,null,null,null,null,null,null,null,null,null,null,"2.2","Займы",null,null,null,null,null,null,null,null,0,0,0,0,{"$f":"SUMIF($BX$49:$BX$54,$BX36,AX$49:AX$54)","v":0},0,null,null,null,null,null,null,null,null,null,null,{"$f":"AJ36 & \"0\"","v":"Займы0"},null,null,null,null,null,null,null,null,null,null,null,null,null,null,"Займыда"]
[null,null,null,null,null,null,null,null,null,null,null,null,null,null,null,null,null,null,null,null,null,null,null,null,null,null,null,null,null,null,null,null,null,null,"2.3","Прочие привлеченные средства",null,null,null,null,null,null,null,null,0,0,0,0,{"$f":"SUMIF($BX$49:$BX$54,$BX37,AX$49:AX$54)","v":0},0,null,null,null,null,null,null,null,null,null,null,{"$f":"AJ37 & \"0\"","v":"Прочие привлеченные средства0"},null,null,null,null,null,null,null,null,null,null,null,null,null,null,"Прочие привлеченные средствада"]
[null,null,null,null,null,null,null,null,null,null,null,null,null,null,null,null,null,null,null,null,null,null,null,null,null,null,null,null,null,null,null,null,null,null,"3","Бюджетное финансирование",null,null,null,null,null,null,null,null,{"$f":"SUM(AS39:AS41)","v":0},{"$f":"SUM(AT39:AT41)","v":0},{"$f":"SUM(AU39:AU41)","v":0},{"$f":"SUM(AV39:AV41)","v":0},{"$f":"SUM(AW39:AW41)","v":0},0,null,null,null,null,null,null,null,null,null,null,null,null,null,null,null,null,null,null,null,null,null,null,null,null,null,"Бюджетное финансированиеда"]
[null,null,null,null,null,null,null,null,null,null,null,null,null,null,null,null,null,null,null,null,null,null,null,null,null,null,null,null,null,null,null,null,null,null,"3.1","Федеральный бюджет",null,null,null,null,null,null,null,null,{"$f":"SUMIF($BX$49:$BX$54,$BX39,AS$49:AS$54)","v":0},0,0,0,{"$f":"SUMIF($BX$49:$BX$54,$BX39,AX$49:AX$54)","v":0},0,null,null,null,null,null,null,null,null,null,null,{"$f":"AJ39 & \"0\"","v":"Федеральный бюджет0"},null,null,null,null,null,null,null,null,null,null,null,null,null,null,"Федеральный бюджетда"]
[null,null,null,null,null,null,null,null,null,null,null,null,null,null,null,null,null,null,null,null,null,null,null,null,null,null,null,null,null,null,null,null,null,null,"3.2","Бюджет субъекта РФ",null,null,null,null,null,null,null,null,0,0,0,0,{"$f":"SUMIF($BX$49:$BX$54,$BX40,AX$49:AX$54)","v":0},0,null,null,null,null,null,null,null,null,null,null,{"$f":"AJ40 & \"0\"","v":"Бюджет субъекта РФ0"},null,null,null,null,null,null,null,null,null,null,null,null,null,null,"Бюджет субъекта РФда"]
[null,null,null,null,null,null,null,null,null,null,null,null,null,null,null,null,null,null,null,null,null,null,null,null,null,null,null,null,null,null,null,null,null,null,"3.3","Бюджет муниципального образования",null,null,null,null,null,null,null,null,0,0,0,0,{"$f":"SUMIF($BX$49:$BX$54,$BX41,AX$49:AX$54)","v":0},0,null,null,null,null,null,null,null,null,null,null,{"$f":"AJ41 & \"0\"","v":"Бюджет муниципального образования0"},null,null,null,null,null,null,null,null,null,null,null,null,null,null,"Бюджет муниципального образованияда"]
[null,null,null,null,null,null,null,null,null,null,null,null,null,null,null,null,null,null,null,null,null,null,null,null,null,null,null,null,null,null,null,null,null,null,"4","Прочие источники финансирования",null,null,null,null,null,null,null,null,{"$f":"SUM(AS43:AS44)","v":0},{"$f":"SUM(AT43:AT44)","v":0},{"$f":"SUM(AU43:AU44)","v":0},{"$f":"SUM(AV43:AV44)","v":0},{"$f":"SUM(AW43:AW44)","v":0},0,null,null,null,null,null,null,null,null,null,null,null,null,null,null,null,null,null,null,null,null,null,null,null,null,null,"Прочие источники финансированияда"]
[null,null,null,null,null,null,null,null,null,null,null,null,null,null,null,null,null,null,null,null,null,null,null,null,null,null,null,null,null,null,null,null,null,null,"4.1","Лизинг",null,null,null,null,null,null,null,null,{"$f":"SUMIF($BX$49:$BX$54,$BX43,AS$49:AS$54)","v":0},0,0,0,{"$f":"SUMIF($BX$49:$BX$54,$BX43,AX$49:AX$54)","v":0},0,null,null,null,null,null,null,null,null,null,null,{"$f":"AJ43 & \"0\"","v":"Лизинг0"},null,null,null,null,null,null,null,null,null,null,null,null,null,null,"Лизингда"]
[null,null,null,null,null,null,null,null,null,null,null,null,null,null,null,null,null,null,null,null,null,null,null,null,null,null,null,null,null,null,null,null,null,null,"4.2","Прочие",null,null,null,null,null,null,null,null,0,0,0,0,{"$f":"SUMIF($BX$49:$BX$54,$BX44,AX$49:AX$54)","v":0},0,null,null,null,null,null,null,null,null,null,null,{"$f":"AJ44 & \"0\"","v":"Прочие0"},null,null,null,null,null,null,null,null,null,null,null,null,null,null,"Прочиеда"]
[]
[]
[null,null,null,"№ п/п","Группа, к которой относятся мероприятия инвестиционной программы","Подгруппа, к которой относятся мероприятия инвестиционной программы","Наименование строек","Территория оказания услуг",null,null,"Период реализации согласно ИП, лет","Плановый год ввода в эксплуатацию / выполнения мероприятия","Фактическая дата ввода в эксплуатацию / выполнения мероприятия",null,"Стадия выполнения, %",null,null,"№ объекта","Объект инфраструктуры ВС","Наименование объекта","Тип объекта","Адрес объекта",null,null,null,null,null,null,"Территория оказания услуг",null,null,null,null,null,"№ источника","Источник финансирования","В рамках концессионного соглашения","Наименование концессионного соглашения","Дата начала","Дата окончания","Наименование решения по КС","Тип решения по КС","№ решения по КС","Дата принятия решения по КС","Всего утверждено на весь период реализации ИП (полная стоимость) 1","Утверждено на 2018 год 1","Факт за 1 полугодие 2018 года 2,3","Факт за год 2018 года 2,3","Осталось профинансировать по результатам отчетного периода 3","Отклонения 2","Отклонения 2, из них за счет:",null,null,null,"Причины отклонений"]
[null,null,null,null,null,null,null,"Муниципальный район","Муниципальное образование","ОКТМО",null,null,"месяц","год","план","факт",null,null,null,null,null,"Муниципальный район","Муниципальное образование","ОКТМО","Населенный пункт","ОКТМО","улица, проезд, проспект, переулок, и т.п.","дом, корпус, строение","Муниципальный район","Муниципальное образование","ОКТМО","Населенный пункт","ОКТМО",null,null,null,null,null,null,null,null,null,null,null,null,null,null,null,null,null,"уточнения стоимости по результатам утвержденной проектно-сметной документации","уточнения стоимости по результатам конкурсов, заключенных договоров (закупочных процедур)","Прочее (наименование)","Прочее, тыс.руб.","Причины отклонений","Ссылка на обосновывающие материалы\n(факт больше плана)"]
[null,null,null,null,null,null,"Всего",null,null,null,null,null,null,null,null,null,null,null,null,null,null,null,null,null,null,null,null,null,null,null,null,null,null,null,null,"Всего",null,null,null,null,null,null,null,null,{"$f":"SUMIF($BE50:$BE54,\"<>1\",AS50:AS54)","v":2680},{"$f":"SUMIF($BE50:$BE54,\"<>1\",AT50:AT54)","v":1340},{"$f":"SUMIF($BE50:$BE54,\"<>1\",AU50:AU54)","v":0},{"$f":"SUMIF($BE50:$BE54,\"<>1\",AV50:AV54)","v":0},{"$f":"SUMIF($BE50:$BE54,\"<>1\",AW50:AW54)","v":1340}]
[null,null,null,0]
[null,null,null,"1","Реконструкция или модернизация существующих объектов  водоотведения и очистки сточных вод в целях снижения уровня износа существующих объектов водоотведения и очистки сточных вод","реконструкция или модернизация существующих сетей  водоотведения и очистки сточных вод","напорный коллектор от КНС-3","Ишимбайский муниципальный район","Город Ишимбай","80631101","5","2018","Декабрь","2017",100,0]
[null,null,null,null,null,null,null,null,null,null,null,null,null,null,null,null,null,1,"да","Уличные внутриквартальные сети","сеть","Ишимбайский муниципальный район","Город Ишимбай","80631101","г Ишимбай","80631101001","г. Ишимбай","иное","Ишимбайский муниципальный район","Город Ишимбай","80631101","г Ишимбай","80631101001",null,0,"Данные по источникам финансирования для объекта инфраструктуры или мероприятия в целом"]
[null,null,null,null,null,null,null,null,null,null,null,null,null,null,null,null,null,null,null,null,null,null,null,null,null,null,null,null,null,null,null,null,null,null,"1","Прибыль направляемая на инвестиции","нет",null,null,null,null,null,null,null,2680,1340,0,null,{"$f":"AT53-AU53","v":1340},{"$f":"AU53-AT53","v":-1340},null,null,"составляющая за предыдущий период",1340,"В тарифном решении учтена составляющая за предыдущий период. Фактически мероприятие выполнено в полном объеме в 2017 году","",0,null,null,null,{"$f":"AJ53 & BE53","v":"Прибыль направляемая на инвестиции0"},null,null,null,null,null,null,null,null,null,null,null,null,null,null,{"$f":"AJ53&AK53","v":"Прибыль направляемая на инвестициинет"}]
[null,null,null,null,""]
[]
[null,null,null,"1 В соответствии с утвержденной инвестиционной программой"]
[]
[null,null,null,"2 Нарастающим итогом за год"]
[]
[null,null,null,"3 В ценах отчетного года"]

{"sheet":"Комментарии","index":4,"n_rows":9,"n_cols":5,"rows_kept":9,"cut":false,"hidden":false,"merged":[]}
[]
[]
[]
[null,null,null,"Комментарии"]
[null,null,null,{"$f":"region_name & \" \" & org","v":"Республика Башкортостан ИМУП \"Межрайкоммунводоканал\""}]
[]
[null,null,null,"№ п/п","Комментарий"]
[null,null,null,0]
[null,null,null,null,"Добавить комментарий"]

{"sheet":"Проверка","index":5,"n_rows":4,"n_cols":4,"rows_kept":4,"cut":false,"hidden":false,"merged":[[1,1,1,3]]}
[]
[null,"Результат проверки"]
[]
[null,"Ссылка","Причина","Статус"]

{"sheet":"TEHSHEET","index":6,"n_rows":87,"n_cols":5,"rows_kept":87,"cut":false,"hidden":true,"merged":[]}
["REGION","year_list","all_year_list","month_list","logical"]
["Алтайский край","2017","2003","Январь","да"]
["Амурская область","2018","2004","Февраль","нет"]
["Архангельская область","2019","2005","Март"]
["Астраханская область","2020","2006","Апрель"]
["Белгородская область","2021","2007","Май"]
["Брянская область","2022","2008","Июнь"]
["Владимирская область","2023","2009","Июль"]
["Волгоградская область","2024","2010","Август"]
["Вологодская область","2025","2011","Сентябрь"]
["Воронежская область","2026","2012","Октябрь"]
["г.Байконур","2027","2013","Ноябрь"]
["г. Москва","2028","2014","Декабрь"]
["г.Санкт-Петербург","2029","2015"]
["г.Севастополь","2030","2016"]
["Еврейская автономная область","2031","2017"]
["Забайкальский край","2032","2018"]
["Ивановская область","2033","2019"]
["Иркутская область",null,"2020"]
["Кабардино-Балкарская республика",null,"2021"]
["Калининградская область",null,"2022"]
["Калужская область",null,"2023"]
["Камчатский край",null,"2024"]
["Карачаево-Черкесская республика",null,"2025"]
["Кемеровская область",null,"2026"]
["Кировская область",null,"2027"]
["Костромская область",null,"2028"]
["Краснодарский край",null,"2029"]
["Красноярский край",null,"2030"]
["Курганская область",null,"2031"]
["Курская область",null,"2032"]
["Ленинградская область",null,"2033"]
["Липецкая область"]
["Магаданская область"]
["Московская область"]
["Мурманская область"]
["Ненецкий автономный округ"]
["Нижегородская область"]
["Новгородская область"]
["Новосибирская область"]
["Омская область"]
["Оренбургская область"]
["Орловская область"]
["Пензенская область"]
["Пермский край"]
["Приморский край"]
["Псковская область"]
["Республика Адыгея"]
["Республика Алтай"]
["Республика Башкортостан"]
["Республика Бурятия"]
["Республика Дагестан"]
["Республика Ингушетия"]
["Республика Калмыкия"]
["Республика Карелия"]
["Республика Коми"]
["Республика Крым"]
["Республика Марий Эл"]
["Республика Мордовия"]
["Республика Саха (Якутия)"]
["Республика Северная Осетия-Алания"]
["Республика Татарстан"]
["Республика Тыва"]
["Республика Хакасия"]
["Ростовская область"]
["Рязанская область"]
["Самарская область"]
["Саратовская область"]
["Сахалинская область"]
["Свердловская область"]
["Смоленская область"]
["Ставропольский край"]
["Тамбовская область"]
["Тверская область"]
["Томская область"]
["Тульская область"]
["Тюменская область"]
["Удмуртская республика"]
["Ульяновская область"]
["Хабаровский край"]
["Ханты-Мансийский автономный округ"]
["Челябинская область"]
["Чеченская республика"]
["Чувашская республика"]
["Чукотский автономный округ"]
["Ямало-Ненецкий автономный округ"]
["Ярославская область"]

{"sheet":"et_union","index":7,"n_rows":15,"n_cols":76,"rows_kept":15,"cut":false,"hidden":true,"merged":[[4,30,6,30],[4,31,6,31],[4,32,6,32],[9,28,11,28],[9,29,11,29],[9,30,11,30],[9,31,11,31],[9,32,11,32],[4,28,6,28],[4,29,6,29],[9,16,11,16],[4,27,6,27],[4,21,6,21],[4,22,6,22],[4,23,6,23],[4,24,6,24],[9,17,11,17],[9,18,11,18],[9,19,11,19],[9,20,11,20],[4,19,6,19],[4,25,6,25],[4,26,6,26],[9,27,11,27],[4,20,6,20],[9,25,11,25],[7,18,7,19],[3,3,7,3],[3,4,7,4],[3,5,7,5],[3,6,7,6],[3,7,7,7],[9,26,11,26],[4,16,6,16],[4,17,6,17],[4,18,6,18],[3,8,7,8],[3,12,7,12],[3,13,7,13],[3,11,7,11],[3,14,7,14],[3,9,7,9],[3,10,7,10],[9,22,11,22],[9,23,11,23],[9,24,11,24],[9,21,11,21],[3,15,7,15]]}
["et_LisComm"]
[]
["et_ws_01_m"]
[]
[null,null,null,null,null,null,null,null,null,null,null,null,null,null,null,null,null,1,null,null,null,null,null,null,null,null,null,null,null,null,null,null,null,null,0,"Данные по источникам финансирования для объекта инфраструктуры или мероприятия в целом"]
[null,null,null,null,null,null,null,null,null,null,null,null,null,null,null,null,null,null,null,null,null,null,null,null,null,null,null,null,null,null,null,null,null,null,"1",null,null,null,null,null,null,null,null,null,null,null,null,null,{"$f":"AT6-AU6","v":0},{"$f":"AU6-AT6","v":0},null,null,null,null,null,null,0,null,null,null,{"$f":"AJ6 & BE6","v":"0"},null,null,null,null,null,null,null,null,null,null,null,null,null,null,{"$f":"AJ6&AK6","v":""}]
[null,null,null,null,null,null,null,null,null,null,null,null,null,null,null,null,null,null,null,null,null,null,null,null,null,null,null,null,null,null,null,null,null,null,null,"Добавить ист. фин."]
[null,null,null,null,null,null,null,null,null,null,null,null,null,null,null,null,null,null,"Добавить объект инфраструктуры"]
["et_ws_01_obj"]
[null,null,null,null,null,null,null,null,null,null,null,null,null,null,null,null,null,null,null,null,null,null,null,null,null,null,null,null,null,null,null,null,null,null,0,"Данные по источникам финансирования для объекта инфраструктуры или мероприятия в целом"]
[null,null,null,null,null,null,null,null,null,null,null,null,null,null,null,null,null,null,null,null,null,null,null,null,null,null,null,null,null,null,null,null,null,null,"1",null,null,null,null,null,null,null,null,null,null,null,null,null,{"$f":"AT11-AU11","v":0},{"$f":"AU11-AT11","v":0},null,null,null,null,null,null,0,null,null,null,{"$f":"AJ11 & BE11","v":"0"},null,null,null,null,null,null,null,null,null,null,null,null,null,null,{"$f":"AJ11&AK11","v":""}]
[null,null,null,null,null,null,null,null,null,null,null,null,null,null,null,null,null,null,null,null,null,null,null,null,null,null,null,null,null,null,null,null,null,null,null,"Добавить ист. фин."]
["et_ws_01_ifin"]
[null,null,null,null,null,null,null,null,null,null,null,null,null,null,null,null,null,null,null,null,null,null,null,null,null,null,null,null,null,null,null,null,null,null,null,null,null,null,null,null,null,null,null,null,null,null,null,null,{"$f":"AT14-AU14","v":0},{"$f":"AU14-AT14","v":0},null,null,null,null,null,null,0,null,null,null,{"$f":"AJ14 & BE14","v":"0"},null,null,null,null,null,null,null,null,null,null,null,null,null,null,{"$f":"AJ14&AK14","v":""}]
["et_com"]

{"sheet":"mod_00","index":8,"n_rows":0,"n_cols":0,"rows_kept":0,"cut":false,"hidden":true,"merged":[]}

{"sheet":"mod_01","index":9,"n_rows":0,"n_cols":0,"rows_kept":0,"cut":false,"hidden":true,"merged":[]}

{"sheet":"mod_com","index":10,"n_rows":0,"n_cols":0,"rows_kept":0,"cut":false,"hidden":true,"merged":[]}

{"sheet":"modProv","index":11,"n_rows":0,"n_cols":0,"rows_kept":0,"cut":false,"hidden":true,"merged":[]}

{"sheet":"modFill","index":12,"n_rows":0,"n_cols":0,"rows_kept":0,"cut":false,"hidden":true,"merged":[]}

{"sheet":"AllSheetsInThisWorkbook","index":13,"n_rows":23,"n_cols":2,"rows_kept":23,"cut":false,"hidden":true,"merged":[]}
["Расчетные листы","Скрытые листы"]
["Инструкция","TEHSHEET"]
["Лог обновления","et_union"]
["Титульный","mod_00"]
["ИП","mod_01"]
["Комментарии","mod_com"]
["Проверка","modProv"]
[null,"modFill"]
[null,"AllSheetsInThisWorkbook"]
[null,"modHTTP"]
[null,"modReestr"]
[null,"modInstruction"]
[null,"modUpdTemplMain"]
[null,"modfrmCheckUpdates"]
[null,"modfrmDateChoose"]
[null,"modfrmRegion"]
[null,"modfrmReestr"]
[null,"REESTR_MO"]
[null,"REESTR_ORG"]
[null,"REESTR_IP"]
[null,"modClassifierValidate"]
[null,"modCheckCyan"]
[null,"modHyp"]

{"sheet":"modHTTP","index":14,"n_rows":0,"n_cols":0,"rows_kept":0,"cut":false,"hidden":true,"merged":[]}

{"sheet":"modReestr","index":15,"n_rows":0,"n_cols":0,"rows_kept":0,"cut":false,"hidden":true,"merged":[]}

{"sheet":"modInstruction","index":16,"n_rows":0,"n_cols":0,"rows_kept":0,"cut":false,"hidden":true,"merged":[]}

{"sheet":"modUpdTemplMain","index":17,"n_rows":0,"n_cols":0,"rows_kept":0,"cut":false,"hidden":true,"merged":[]}

{"sheet":"modfrmCheckUpdates","index":18,"n_rows":0,"n_cols":0,"rows_kept":0,"cut":false,"hidden":true,"merged":[]}

{"sheet":"modfrmDateChoose","index":19,"n_rows":0,"n_cols":0,"rows_kept":0,"cut":false,"hidden":true,"merged":[]}

{"sheet":"modfrmRegion","index":20,"n_rows":0,"n_cols":0,"rows_kept":0,"cut":false,"hidden":true,"merged":[]}

{"sheet":"modfrmReestr","index":21,"n_rows":0,"n_cols":0,"rows_kept":0,"cut":false,"hidden":true,"merged":[]}

{"sheet":"REESTR_MO","index":22,"n_rows":0,"n_cols":0,"rows_kept":0,"cut":false,"hidden":true,"merged":[]}

{"sheet":"REESTR_ORG","index":23,"n_rows":0,"n_cols":0,"rows_kept":0,"cut":false,"hidden":true,"merged":[]}

{"sheet":"REESTR_IP","index":24,"n_rows":12,"n_cols":27,"rows_kept":12,"cut":false,"hidden":true,"merged":[]}
[null,"INVP_NAME","L_START_DATE","L_END_DATE","ORG_NAME","INN_NAME","KPP_NAME","L_OPF","FIL_NAME","VDET_NAME","L_DECISION_NAME","L_DECISION_TYPE","L_DECISION_NMBR","L_DECISION_DATE","L_DECISION_URL","L8_1","L15","L_CONCESSION","L_NVV","L2_1_1","L2_1_2","L2_2_1","L2_2_2","L2_2_3","L2_2_4","L_RST_ORG_ID","ID"]
[1,"Инвестиционная программа АО \"Водоснабжающая компания\" по развитию, модернизации, реконструкции систем коммунального водоснабжения и канализации городского округа город Стерлитамак на 2017 - 2019 годы","01.01.2017","31.12.2019","ЗАО \"Водоснабжающая компания\"","0268055772","026801001","1 22 67 | Непубличные акционерные общества","Не определено","Приём сточных вод :: Очистка сточных вод","Об утверждении инвестиционных программ","приказ","04/06-435","30.11.2017","https://portal.eias.ru/Portal/DownloadPage.aspx?type=12&guid=bb8ecfb9-d126-4c5b-908c-55534a4ab604","нет","по отдельным мероприятиям","ИП не содержит мероприятия, реализуемые в рамках КС","нет","453120, РБ г.Стерлитамак, ул.Днепровская, д.3","453120, РБ г.Стерлитамак, ул.Днепровская, д.3","Кадынцева Наталья Николаевна","начальник ПЭО МУП \"МРКВК\" г.о. город Стерлитамак","8 (3473) 24-00-98","stervod3@mail.ru","26758634","48478765"]
[2,"Инвестиционная программа Ишимбайского муниципального унитарного предприятия \"Межрайкоммунводоканал\" по развитию систем водоснабжения и водоотведения муниципального района Ишимбайский район на период 2017 - 2021 гг.","01.01.2017","31.12.2021","ИМУП \"Межрайкоммунводоканал\"","0261002348","026101001","6 52 43 | Муниципальные унитарные предприятия","Не определено","Приём сточных вод :: Очистка сточных вод","Приказ Министерства жилищно-коммунального хозяйства Республики Башкортостан","приказ","04/06-396","17.11.2016","https://portal.eias.ru/Portal/DownloadPage.aspx?type=12&guid=7326ae23-64d6-4716-9b8e-3b798566474a","нет","по организации","ИП не содержит мероприятия, реализуемые в рамках КС","нет","453204, РБ, г. Ишимбай, ул. Жукова, 16","453204, РБ, г. Ишимбай, ул. Жукова, 16","Стародубова Елена Николаевна","главный экономист","(34794) 4-13-77","ishvodokanal@rambler.ru","26472050","48478772"]
[3,"Инвестиционная программа МУП \"Дюртюливодоканал\" по развитию систем водоснабжения и водоотведения муниципального района Дюртюлинский район на 2017-2021 годы","01.01.2017","31.12.2021","МУП \"Дюртюливодоканал\"","0260006195","026001001","6 52 43 | Муниципальные унитарные предприятия","Не определено","Приём сточных вод :: Очистка сточных вод","Об утверждении инвестиционных программ","приказ","04/06-364","06.10.2017","https://portal.eias.ru/Portal/DownloadPage.aspx?type=12&guid=6d493a70-bac3-4c6d-80f2-5285ef11576c","нет","по организации","ИП не содержит мероприятия, реализуемые в рамках КС","нет","450008,РБ, г.Уфа,ул.Цюрупа,17","450008,РБ, г.Уфа,ул.Цюрупа,17","Бут Ирина Сергеевна","Главный специалист - эксперт Государственного комита РБ по тарифам","(347)218-09-39","bashtarif83@bashkortostan.ru","27745143","48478771"]
[4,"Инвестиционная программа МУП \"Межрайкоммунводоканал\" по развитию централизованных систем водоснабжения и водоотведения на территории городского округа город Кумертау на 2018-2020 годы","02.01.2018","01.01.2021","МУП \"Межрайкоммунводоканал\"","0262000343","026201001","6 52 43 | Муниципальные унитарные предприятия","Не определено","Приём сточных вод :: Очистка сточных вод","Об утверждении инвестиционных программ","приказ","04/06-374","23.10.2017","https://portal.eias.ru/Portal/DownloadPage.aspx?type=12&guid=47578e27-cf6b-424e-b7b5-71e1f2d1eec6","да","по организации","ИП не содержит мероприятия, реализуемые в рамках КС","нет","453309, Республика Башкортостан, г.Кумертау, 2-й пер.Салавата,д.9","453309, Республика Башкортостан г.Кумертау, 2-й пер.Салавата,д.9","Крышко Оксана Витальевна","начальник ПЭО","(34761)4-43-85","mrkwk@mail.ru","26471967","48478770"]
[5,"Инвестиционная программа МУП \"Октябрьсккоммунводоканал\" по развитию централизованных систем водоснабжения и водоотведения городского округа город Октябрьский на 2017 - 2019 годы","01.01.2017","31.12.2019","МУП \"Октябрьсккоммунводоканал\"","0265026710","026501001","6 52 43 | Муниципальные унитарные предприятия","Не определено","Приём сточных вод :: Очистка сточных вод","Об утверждении инвестиционных программ","приказ","04/06-435","30.11.2017","https://portal.eias.ru/Portal/DownloadPage.aspx?type=12&guid=c7a150d7-fa13-499c-92d9-58e6ea326176","нет","по организации","ИП не содержит мероприятия, реализуемые в рамках КС","нет","452616,Республика Башкортостан, город Октябрьский, ул.Кувыкина, 23","452616,Республика Башкортостан, город Октябрьский, ул.Кувыкина, 23","Шарафутдинова Гульнара Фаатовна","старший инженер","8(34767)5-24-13","myp_ovk@mail.ru","26472030","48478764"]
[6,"Инвестиционная программа МУП \"Салаватводоканал\" по развитию централизованных систем водоснабжения и водоотведения городского округа город Салават Республики Башкортостан на 2016-2018 годы","01.01.2016","31.12.2018","МУП Салаватводоканал","0266002905","026601001","6 52 43 | Муниципальные унитарные предприятия","Не определено","Приём сточных вод :: Очистка сточных вод","Приказ Министерства жилищно-коммунального хозяйства Республики Башкортостан","приказ","04/06-384","31.10.2017","https://portal.eias.ru/Portal/DownloadPage.aspx?type=12&guid=4dbace09-c29c-4dd7-a345-2e3c35957bb4","нет","по организации","ИП не содержит мероприятия, реализуемые в рамках КС","нет","г.Салават, ул. Уфимская, 37","г.Салават, ул. Уфимская, 37","Коршунова Светлана Михайловна","начальник технического отдела","8-917-79-30-346","SV13K@mail.ru","26472042","48478767"]
[7,"Инвестиционная программа МУП \"Сибайводоканал\" по развитию систем водоснабжения и водоотведения городского округа город Сибай на 2017 - 2019 годы","01.01.2017","31.12.2019","МУП \"Сибайводоканал\"","0267018087","026701001","6 52 43 | Муниципальные унитарные предприятия","Не определено","Приём сточных вод :: Очистка сточных вод :: Транспортировка сточных вод","Об утверждении инвестиционной программы","приказ","04/06-300","08.09.2016","https://portal.eias.ru/Portal/DownloadPage.aspx?type=12&guid=ee828f5f-4c31-488c-9dfb-38d58ed0e806","нет","по отдельным мероприятиям","ИП не содержит мероприятия, реализуемые в рамках КС","нет","453838, Республика Башкортостан, г. Сибай, ул. Белова, 11","453838, Республика Башкортостан, г. Сибай, ул. Белова, 11","Утяшев И.И.","экономист","8(34775)5-94-62","ildar_bp@bk.ru","30350111","48478773"]
[8,"Инвестиционная программа МУП \"Уфаводоканал\" по развитию централизованных систем водоснабжения и водоотведения муниципального унитарного предприятия по эксплуатации водопроводно-канализационного хозяйства \"Уфаводоканал\" на 2015 - 2019 годы в целях реализации программы комплексного развития централизованных систем водоснабжения и водоотведения городского округа город Уфа на 2009 - 2025 годы","01.01.2017","31.12.2019","МУП \"Уфаводоканал\"","0275000238","027601001","6 52 43 | Муниципальные унитарные предприятия","Не определено","Приём сточных вод :: Очистка сточных вод :: Транспортировка сточных вод","Об утверждении инвестиционных программ","приказ","04/06-364","06.10.2017","https://portal.eias.ru/Portal/DownloadPage.aspx?type=12&guid=25678f66-3d42-4e5a-9988-780dd9054144","да","по организации","ИП не содержит мероприятия, реализуемые в рамках КС","нет","450098, РБ, г.Уфа, ул.Российская, 157/2","450098, РБ, г.Уфа, ул.Российская, 157/2","Никитин Андрей Валерьевич","Главный специалист - руководитель службы технического развития систем ВиВ","8 (347) 279-08-13","uwc@uwc.ufanet.ru","26472069","48478774"]
[9,"Инвестиционная программа ООО \"Белебеевский водоканал\" по развитию систем водоснабжения и водоотведения муниципального района Белебеевский район на период 2017 – 2019 годы","01.01.2017","31.12.2019","ООО \"Белебеевский водоканал\"","0255014715","025501001","1 23 00 | Общества с ограниченной ответственностью","Не определено","Транспортировка сточных вод","Приказ","приказ","04/06-420","30.11.2016","https://portal.eias.ru/Portal/DownloadPage.aspx?type=12&guid=426ee5e0-56f0-494b-8ee1-4a71ad7e6cf3","да","по организации","ИП не содержит мероприятия, реализуемые в рамках КС","нет","452000, Республика Башкортостан, г.Белебей, ул.Шоссейная, д.6","452000, Республика Башкортостан, г.Белебей, ул.Шоссейная, д.6","Архипова Людмила Петровна","начальник ПЭО","(8-34786) 3-50-17","vdkbel@mail.ru","26471913","48478766"]
[10,"Инвестиционная программа ООО \"Белебеевский водоканал\" по развитию систем водоснабжения и водоотведения муниципального района Белебеевский район на период 2017 – 2019 годы","01.01.2017","31.12.2019","ООО \"Белебеевский водоканал\"","0255014715","025501001","1 23 00 | Общества с ограниченной ответственностью","Не определено","Приём сточных вод :: Очистка сточных вод :: Транспортировка сточных вод","МЖКХ РБ","приказ","04/06-420","30.11.2016","https://portal.eias.ru/Portal/DownloadPage.aspx?type=12&guid=000e4171-9318-4cdb-a7f0-f7c6936b5a5a","да","по организации","ИП не содержит мероприятия, реализуемые в рамках КС","нет","452000, Республика Башкортостан, г.Белебей, ул.Шоссейная, д.6","452000, Республика Башкортостан, г.Белебей, ул.Шоссейная, д.6","Архипова Людмила Петровна","начальник ПЭО","(8-34786) 3-50-17","vdkbel@mail.ru","26471913","48478768"]
[11,"Инвестиционная программа ООО \"Водоканал\" по развитию централизованных систем водоснабжения и водоотведения на 2018-2021 годы","01.01.2018","31.12.2021","ООО \"Водоканал\"","0263017332","026301001","1 23 00 | Общества с ограниченной ответственностью","Не определено","Приём сточных вод :: Очистка сточных вод :: Транспортировка сточных вод","Об утверждении ИП","приказ","04/06-374","23.10.2017","https://portal.eias.ru/Portal/DownloadPage.aspx?type=12&guid=555cdd05-fe40-469c-89a0-e6beba268a24","нет","по организации","ИП не содержит мероприятия, реализуемые в рамках КС","нет","453851, РБ, г. Мелеуз, ул. Ленина, 10","453851, РБ, г. Мелеуз, ул. Ленина, 10","Узбеков Р.Р.","Начальнтк ПТО","(8 347 64) 3 46 32","pto@vodamel.ru","30376832","48478769"]

{"sheet":"modClassifierValidate","index":25,"n_rows":0,"n_cols":0,"rows_kept":0,"cut":false,"hidden":true,"merged":[]}

{"sheet":"modCheckCyan","index":26,"n_rows":0,"n_cols":0,"rows_kept":0,"cut":false,"hidden":true,"merged":[]}

{"sheet":"modHyp","index":27,"n_rows":0,"n_cols":0,"rows_kept":0,"cut":false,"hidden":true,"merged":[]}